fUSD/lending_fUSD_20250506
["ID","MTS","AMOUNT","RATE_DAILY","PERIOD"]
[360053815,1746523862408,-450.0,0.00019998,2]
[360053816,1746523862417,-177.91204472,0.00019998,2]
[360053817,1746523862707,-272.08795528,0.00019998,2]
[360053818,1746523862717,-860.12538,0.00019998,2]
[360053819,1746523862726,-450.0,0.00019998,2]
[360053820,1746523862735,-274.73,0.00019998,2]
[360053821,1746523862745,-151.0,0.00019998,2]
[360053822,1746523862754,-410.853929,0.00019998,2]
[360053823,1746523862764,-480.65846086,0.00019998,2]
[360053824,1746523862773,-450.0,0.00019998,2]
[360053825,1746523862783,-450.0,0.00019998,2]
[360053826,1746523862792,-450.0,0.00019998,2]
[360053827,1746523862802,-439.91,0.00019998,2]
[360053828,1746523862812,-70.26137427,0.00019998,2]
[360053829,1746523862823,-491.34862573,0.00019998,2]
[360053830,1746523862832,-450.0,0.00019998,2]
[360053831,1746523862842,-327.04,0.00019998,2]
[360053832,1746523862851,-450.0,0.00019998,2]
[360053833,1746523862860,-450.0,0.00019998,2]
[360053834,1746523862870,-343.09669203,0.00019998,2]
[360053835,1746523862879,-450.0,0.00019998,2]
[360053836,1746523862888,-450.0,0.00019998,2]
[360053837,1746523862898,-483.09,0.00019998,2]
[360053838,1746523862907,-450.0,0.00019998,2]
[360053839,1746523862916,-450.0,0.00019998,2]
[360053840,1746523862925,-450.0,0.00019998,2]
[360053841,1746523862935,-450.0,0.00019998,2]
[360053842,1746523862944,-1467.012021,0.00019998,2]
[360053843,1746523862954,-1467.012021,0.00019998,2]
[360053844,1746523862963,-450.0,0.00019998,2]
[360053845,1746523862972,-450.0,0.00019998,2]
[360053846,1746523862982,-450.0,0.00019998,2]
[360053847,1746523862991,-450.0,0.00019998,2]
[360053848,1746523863001,-450.0,0.00019998,2]
[360053849,1746523863010,-535.17,0.00019998,2]
[360053850,1746523863019,-1000.0,0.00019998,2]
[360053851,1746523863029,-1000.0,0.00019998,2]
[360053852,1746523863039,-1000.0,0.00019998,2]
[360053853,1746523863048,-1000.0,0.00019998,2]
[360053854,1746523863058,-1000.0,0.00019998,2]
[360053855,1746523863068,-1051.29620063,0.00019998,2]
[360053856,1746523863077,-450.0,0.00019998,2]
[360053857,1746523863086,-580.93,0.00019998,2]
[360053858,1746523863096,-450.0,0.00019998,2]
[360053859,1746523863106,-450.0,0.00019998,2]
[360053860,1746523863115,-450.0,0.00019998,2]
[360053861,1746523863125,-340.96,0.00019998,2]
[360053862,1746523863135,-223.79,0.00019998,2]
[360053863,1746523863144,-568.64,0.00019998,2]
[360053864,1746523863154,-450.0,0.00019998,2]
[360053865,1746523863164,-450.0,0.00019998,2]
[360053866,1746523863174,-450.0,0.00019998,2]
[360053867,1746523863183,-450.0,0.00019998,2]
[360053868,1746523863194,-450.0,0.00019998,2]
[360053869,1746523863203,-524.81,0.00019998,2]
[360053870,1746523863213,-524.81,0.00019998,2]
[360053871,1746523863222,-524.81,0.00019998,2]
[360053872,1746523863232,-524.81,0.00019998,2]
[360053873,1746523863241,-524.81,0.00019998,2]
[360053874,1746523863250,-450.0,0.00019998,2]
[360053875,1746523863260,-497.338298,0.00019998,2]
[360053876,1746523863269,-497.338298,0.00019998,2]
[360053877,1746523863279,-450.0,0.00019998,2]
[360053878,1746523863289,-182.44,0.00019998,2]
[360053879,1746523863299,-450.0,0.00019998,2]
[360053880,1746523863308,-462.28031558,0.00019998,2]
[360053881,1746523863317,-450.0,0.00019998,2]
[360053882,1746523863327,-170.58,0.00019998,2]
[360053883,1746523863336,-450.0,0.00019998,2]
[360053884,1746523863346,-450.0,0.00019998,2]
[360053885,1746523863355,-532.09,0.00019998,2]
[360053886,1746523863364,-532.09,0.00019998,2]
[360053887,1746523863375,-532.09,0.00019998,2]
[360053888,1746523863384,-12321.66,0.00019998,2]
[360053889,1746523863393,-5718.65752803,0.00019998,2]
[360053890,1746523916824,189.33484,0.0002479,34]
[360053891,1746524040470,791.62,0.0002479,60]
[360053892,1746524053486,500.0,0.00029589,30]
[360053893,1746524053737,500.0,0.00029863,35]
[360053894,1746524077101,500.0,0.00018904,2]
[360053895,1746524077446,500.0,0.00018904,2]
[360053896,1746524078079,500.0,0.00018904,2]
[360053897,1746524078396,500.0,0.00018904,2]
[360053898,1746524078730,356.21306956,0.00018904,2]
[360053899,1746524098578,500.0,0.00029589,30]
[360053900,1746524098870,500.0,0.00029863,30]
[360053901,1746524099710,520.43,0.00017005,2]
[360053902,1746524099927,520.43,0.00019269,2]
[360053903,1746524101652,500.0,0.00018904,2]
[360053904,1746524101991,500.0,0.00018904,2]
[360053905,1746524102339,500.0,0.00018904,2]
[360053906,1746524102970,500.0,0.00018904,2]
[360053907,1746524103376,500.0,0.00018904,2]
[360053908,1746524151226,54213.2259136,0.0003,30]
[360053909,1746524192537,443.93,0.000195,2]
[360053910,1746524273099,-290.93080443,0.0001959,2]
[360053911,1746524273764,-200.47515817,0.0001959,2]
[360053912,1746524312988,164.34,0.00019483,2]
[360053913,1746524363105,1000.0,0.00018949,2]
[360053914,1746524386139,188.57,0.00018949,2]
[360053915,1746524392608,250.0,0.00017,2]
[360053916,1746524393693,300.0,0.00019,2]
[360053938,1746524628388,500.0,0.00029589,30]
[360053939,1746524628646,500.0,0.00029863,35]
[360053957,1746524702844,500.0,0.00029589,30]
[360053958,1746524703097,500.0,0.00029863,30]
[360053959,1746524742560,170.3,0.00018865,2]
[360053960,1746524742764,170.3,0.0001887,2]
[360053961,1746524743014,170.3,0.00018875,2]
[360053962,1746524743225,170.3,0.0001888,2]
[360053963,1746524743837,170.3,0.00018885,2]
[360053964,1746524743924,170.3,0.0001889,2]
[360053965,1746524744136,170.3,0.00018895,2]
[360053966,1746524744398,170.3,0.000189,2]
[360053967,1746524744622,170.3,0.00018905,2]
[360053968,1746524744814,170.3,0.0001891,2]
[360053969,1746524745036,170.3,0.00018915,2]
[360053970,1746524745257,170.3,0.0001892,2]
[360053971,1746524745504,170.3,0.00018925,2]
[360053972,1746524745725,170.3,0.0001893,2]
[360053973,1746524745931,170.3,0.00018935,2]
[360053974,1746524746360,170.3,0.00018939,2]
[360053975,1746524746569,170.3,0.00018944,2]
[360053976,1746524746759,170.3,0.00018949,2]
[360053977,1746524746970,170.3,0.00018954,2]
[360053978,1746524747364,170.3,0.00018959,2]
[360053979,1746524757204,384.52830906,0.00019467,2]
[360053980,1746524786220,500.0,0.00018904,2]
[360053981,1746524786534,500.0,0.00018904,2]
[360053982,1746524786869,500.0,0.00018904,2]
[360053983,1746524789535,500.0,0.00018904,2]
[360053984,1746524789886,500.0,0.00018904,2]
[360053985,1746524938620,189.28,0.00019412,2]
[360053986,1746524961178,339.65233708,0.0003,30]
[360053991,1746525031624,-200.0,0.000197,2]
[360053992,1746525031633,-200.0,0.00019704,2]
[360053993,1746525031642,-200.0,0.00019707,2]
[360053994,1746525031652,-100.0,0.00019751,2]
[360053995,1746525031665,-662.541,0.00019751,2]
[360053996,1746525031674,-134.43909551,0.0001976,2]
[360053997,1746525031685,-204.09911328,0.0001976,2]
[360053998,1746525031695,-305.11746777,0.0001976,2]
[360053999,1746525031711,-429.57785735,0.0001976,2]
[360054000,1746525031723,-1590.8908,0.00019773,2]
[360054001,1746525031732,-154.36297733,0.00019776,2]
[360054002,1746525031742,-57.1023726,0.00019787,2]
[360054003,1746525031763,-577.83489551,0.00019787,2]
[360054004,1746525031775,-565.06273189,0.00019787,2]
[360054005,1746525031784,-300.0,0.00019787,2]
[360054006,1746525031794,-207.4,0.00019787,2]
[360054007,1746525031803,-16243.75559133,0.00019788,2]
[360054008,1746525031813,-4649.8319,0.00019799,2]
[360054009,1746525031823,-337.04891775,0.000198,2]
[360054010,1746525031832,-189.33486,0.000198,23]
[360054011,1746525031841,-1071.83261138,0.000198,2]
[360054012,1746525031853,-5871.374775,0.000198,2]
[360054013,1746525031864,-9300.54820489,0.000198,2]
[360054014,1746525031873,-337.04891774,0.00019811,2]
[360054015,1746525031883,-16243.75559127,0.00019813,2]
[360054016,1746525031892,-337.04891774,0.00019822,2]
[360054017,1746525031901,-16243.75559127,0.00019825,2]
[360054018,1746525031911,-337.04891774,0.00019833,2]
[360054019,1746525031920,-16243.75559127,0.00019838,2]
[360054020,1746525031929,-668.65185757,0.00019841,2]
[360054022,1746525031938,-151.0,0.00019841,2]
[360054024,1746525031947,-337.04891774,0.00019844,2]
[360054026,1746525031956,-16243.75559127,0.0001985,2]
[360054028,1746525031965,-253.340938,0.00019852,2]
[360054030,1746525031975,-198.388961,0.00019852,2]
[360054032,1746525031984,-450.0,0.00019853,2]
[360054034,1746525031993,-500.0,0.00019853,2]
[360054036,1746525032002,-450.0,0.00019853,2]
[360054038,1746525032010,-289.41543735,0.00019853,2]
[360054040,1746525032019,-450.0,0.00019853,2]
[360054041,1746525032028,-177.19546774,0.00019853,2]
[360054043,1746525032037,-450.0,0.00019853,2]
[360054045,1746525032046,-460.46872685,0.00019853,2]
[360054046,1746525032055,-450.0,0.00019853,2]
[360054047,1746525032064,-450.0,0.00019853,2]
[360054048,1746525032073,-450.0,0.00019853,2]
[360054049,1746525032082,-558.68254738,0.00019853,2]
[360054050,1746525032091,-469.51174114,0.00019853,2]
[360054051,1746525032103,-450.0,0.00019853,2]
[360054052,1746525032113,-450.0,0.00019853,2]
[360054053,1746525032122,-469.68426347,0.00019853,2]
[360054054,1746525032132,-479.1396632,0.00019853,2]
[360054055,1746525032142,-543.99,0.00019853,2]
[360054056,1746525032151,-459.67653501,0.00019853,2]
[360054057,1746525032160,-459.46449075,0.00019853,2]
[360054058,1746525032170,-376.23674134,0.00019853,2]
[360054059,1746525032179,-450.0,0.00019853,2]
[360054060,1746525032188,-450.0,0.00019853,2]
[360054061,1746525032198,-450.0,0.00019853,2]
[360054062,1746525032207,-450.0,0.00019853,2]
[360054063,1746525032216,-450.0,0.00019853,2]
[360054064,1746525032226,-552.71062505,0.00019853,2]
[360054065,1746525032236,-450.0,0.00019853,2]
[360054066,1746525032245,-512.72,0.00019853,2]
[360054067,1746525032254,-450.0,0.00019853,2]
[360054068,1746525032263,-450.0,0.00019853,2]
[360054069,1746525032273,-457.88572593,0.00019853,2]
[360054070,1746525032282,-577.78230863,0.00019853,2]
[360054071,1746525032292,-450.0,0.00019853,2]
[360054072,1746525032301,-450.0,0.00019853,2]
[360054073,1746525032310,-493.68333337,0.00019853,2]
[360054074,1746525032320,-450.0,0.00019853,2]
[360054075,1746525032329,-564.53733444,0.00019853,2]
[360054076,1746525032339,-525.1439198,0.00019853,2]
[360054077,1746525032348,-450.0,0.00019853,2]
[360054078,1746525032357,-450.0,0.00019853,2]
[360054079,1746525032366,-235.56275535,0.00019853,2]
[360054080,1746525032376,-450.0,0.00019853,2]
[360054081,1746525032385,-450.0,0.00019853,2]
[360054082,1746525032395,-273.95650723,0.00019853,2]
[360054083,1746525032404,-450.0,0.00019853,2]
[360054084,1746525032413,-450.0,0.00019853,2]
[360054085,1746525032422,-450.0,0.00019853,2]
[360054086,1746525032431,-472.39337112,0.00019853,2]
[360054087,1746525032441,-450.0,0.00019853,2]
[360054088,1746525032451,-450.0,0.00019853,2]
[360054089,1746525032460,-450.0,0.00019853,2]
[360054090,1746525032472,-450.0,0.00019853,2]
[360054091,1746525032482,-450.0,0.00019853,2]
[360054092,1746525032492,-450.0,0.00019853,2]
[360054093,1746525032503,-462.11474998,0.00019853,2]
[360054094,1746525032513,-450.0,0.00019853,2]
[360054095,1746525032522,-335.20335342,0.00019853,2]
[360054096,1746525032531,-450.0,0.00019853,2]
[360054097,1746525032541,-450.0,0.00019853,2]
[360054098,1746525032551,-450.0,0.00019853,2]
[360054099,1746525032561,-450.0,0.00019853,2]
[360054100,1746525032571,-450.0,0.00019853,2]
[360054101,1746525032582,-450.0,0.00019853,2]
[360054102,1746525032591,-450.0,0.00019853,2]
[360054103,1746525032601,-474.12,0.00019853,2]
[360054104,1746525032610,-450.0,0.00019853,2]
[360054105,1746525032619,-603.74,0.00019853,2]
[360054106,1746525032629,-450.0,0.00019853,2]
[360054107,1746525032639,-450.0,0.00019853,2]
[360054108,1746525032648,-450.0,0.00019853,2]
[360054109,1746525032657,-450.0,0.00019853,2]
[360054110,1746525032667,-450.0,0.00019853,2]
[360054111,1746525032676,-450.0,0.00019853,2]
[360054112,1746525032685,-587.4830056,0.00019853,2]
[360054113,1746525032694,-450.0,0.00019853,2]
[360054114,1746525032704,-450.0,0.00019853,2]
[360054115,1746525032713,-450.0,0.00019853,2]
[360054116,1746525032723,-486.8739042,0.00019853,2]
[360054117,1746525032733,-450.0,0.00019853,2]
[360054118,1746525032742,-450.0,0.00019853,2]
[360054119,1746525032751,-469.5828094,0.00019853,2]
[360054120,1746525032760,-450.0,0.00019853,2]
[360054121,1746525032769,-450.0,0.00019853,2]
[360054122,1746525032778,-450.0,0.00019853,2]
[360054123,1746525032787,-538.79781738,0.00019853,2]
[360054124,1746525032797,-403.71340444,0.00019853,2]
[360054125,1746525032806,-450.0,0.00019853,2]
[360054126,1746525032815,-450.0,0.00019853,2]
[360054127,1746525032824,-450.0,0.00019853,2]
[360054128,1746525032833,-450.0,0.00019853,2]
[360054129,1746525032842,-450.0,0.00019853,2]
[360054130,1746525032851,-450.0,0.00019853,2]
[360054131,1746525032861,-451.94295917,0.00019853,2]
[360054132,1746525032870,-586.3376441,0.00019853,2]
[360054133,1746525032879,-450.0,0.00019853,2]
[360054134,1746525032888,-450.0,0.00019853,2]
[360054135,1746525032898,-450.0,0.00019853,2]
[360054136,1746525032908,-450.0,0.00019853,2]
[360054137,1746525032917,-506.02774208,0.00019853,2]
[360054138,1746525032927,-179.5954504,0.00019853,2]
[360054144,1746525037354,-433.13563861,0.00019852,2]
[360054145,1746525037412,-66.86436139,0.00019852,2]
[360054146,1746525037422,-214.79563861,0.00019852,2]
[360054147,1746525037433,-285.20436139,0.00019852,2]
[360054148,1746525037442,-304.77115302,0.00019852,2]
[360054149,1746525037517,-195.22884698,0.00019852,2]
[360054150,1746525037526,-500.0,0.00019852,2]
[360054151,1746525037536,-500.0,0.00019852,2]
[360054152,1746525037546,-500.0,0.00019852,2]
[360054153,1746525037556,-500.0,0.00019852,2]
[360054154,1746525037566,-500.0,0.00019852,2]
[360054155,1746525037576,-500.0,0.00019852,2]
[360054156,1746525037586,-500.0,0.00019852,2]
[360054157,1746525037595,-500.0,0.00019852,2]
[360054158,1746525037605,-500.0,0.00019852,2]
[360054159,1746525037615,-500.0,0.00019852,2]
[360054160,1746525037624,-491.29783885,0.00019852,2]
[360054161,1746525037634,-270.4045496,0.00019853,2]
[360054162,1746525037643,-450.0,0.00019853,2]
[360054163,1746525037652,-208.46422312,0.00019853,2]
[360054164,1746525037679,-500.0,0.00019852,2]
[360054165,1746525037689,-500.0,0.00019852,2]
[360054166,1746525037698,-500.0,0.00019852,2]
[360054167,1746525037707,-241.53577688,0.00019853,2]
[360054168,1746525037716,-508.91970816,0.00019853,2]
[360054169,1746525037726,-450.0,0.00019853,2]
[360054170,1746525037735,-453.15062506,0.00019853,2]
[360054171,1746525037745,-337.04891774,0.00019856,2]
[360054172,1746525037754,-16243.75559127,0.00019863,2]
[360054173,1746525037763,-337.04891774,0.00019867,2]
[360054174,1746525037773,-164.81,0.00019867,2]
[360054175,1746525037782,-164.81,0.00019869,2]
[360054177,1746525037791,-164.81,0.00019869,2]
[360054178,1746525037801,-1901.31,0.00019869,2]
[360054180,1746525037810,-164.81,0.0001987,2]
[360054182,1746525037819,-500.0,0.00019873,2]
[360054184,1746525037828,-499.85200457,0.00019873,2]
[360054185,1746525037837,-568.94610058,0.00019873,2]
[360054187,1746525037846,-500.0,0.00019873,2]
[360054189,1746525037855,-167.1532044,0.00019873,2]
[360054191,1746525037865,-16243.75559127,0.00019875,2]
[360054193,1746525037873,-154.46767551,0.00019877,2]
[360054194,1746525037883,-450.0,0.00019877,2]
[360054196,1746525037892,-460.95144241,0.00019877,2]
[360054198,1746525037901,-460.12931965,0.00019877,2]
[360054200,1746525037911,-500.0,0.00019877,2]
[360054202,1746525037920,-487.38705143,0.00019877,2]
[360054204,1746525037929,-551.27071282,0.00019877,2]
[360054206,1746525037939,-450.0,0.00019877,2]
[360054208,1746525037948,-461.46600059,0.00019877,2]
[360054210,1746525037957,-567.20302934,0.00019877,2]
[360054211,1746525037966,-530.0,0.00019877,2]
[360054213,1746525037975,-455.97831931,0.00019877,2]
[360054215,1746525037985,-450.0,0.00019877,2]
[360054217,1746525037994,-450.0,0.00019877,2]
[360054219,1746525038003,-450.0,0.00019877,2]
[360054221,1746525038013,-530.0,0.00019877,2]
[360054223,1746525038022,-450.0,0.00019877,2]
[360054225,1746525038031,-549.93813328,0.00019877,2]
[360054226,1746525038040,-575.31442529,0.00019877,2]
[360054227,1746525038049,-569.20046436,0.00019877,2]
[360054228,1746525038058,-450.0,0.00019877,2]
[360054229,1746525038067,-544.29,0.00019877,2]
[360054230,1746525038077,-450.0,0.00019877,2]
[360054231,1746525038085,-208.95514916,0.00019877,2]
[360054232,1746525038094,-450.0,0.00019877,2]
[360054233,1746525038103,-450.0,0.00019877,2]
[360054234,1746525038113,-450.0,0.00019877,2]
[360054235,1746525038122,-337.04891774,0.00019878,2]
[360054236,1746525038131,-450.0,0.00019878,2]
[360054237,1746525038140,-446.51817703,0.00019878,2]
[360054238,1746525038149,-497.20398235,0.00019878,2]
[360054239,1746525038158,-450.0,0.00019878,2]
[360054240,1746525038168,-450.80032787,0.00019878,2]
[360054241,1746525038177,-450.0,0.00019879,2]
[360054242,1746525038187,-450.0,0.00019879,2]
[360054243,1746525038196,-332.39273584,0.00019879,2]
[360054244,1746525038206,-280.80720093,0.00019879,2]
[360054245,1746525038215,-515.46919084,0.00019879,2]
[360054246,1746525038224,-181.26618818,0.00019879,2]
[360054247,1746525038234,-170.04288718,0.00019879,2]
[360054248,1746525038243,-159.85371253,0.00019879,2]
[360054249,1746525038253,-450.0,0.00019879,2]
[360054250,1746525038263,-518.24126788,0.00019879,2]
[360054251,1746525038273,-454.90307283,0.00019879,2]
[360054252,1746525038282,-450.0,0.00019879,2]
[360054253,1746525038292,-429.87056663,0.00019879,2]
[360054254,1746525038301,-495.42494486,0.00019879,2]
[360054255,1746525038310,-465.35527399,0.00019879,2]
[360054256,1746525038319,-522.29934466,0.00019879,2]
[360054257,1746525038328,-450.0,0.00019879,2]
[360054259,1746525038337,-474.47695917,0.00019879,2]
[360054261,1746525038347,-464.94515085,0.00019879,2]
[360054278,1746525038502,-450.0,0.00019879,2]
[360054280,1746525038512,-317.74525821,0.00019879,2]
[360054282,1746525038521,-488.45192156,0.00019879,2]
[360054284,1746525038531,-458.36355577,0.00019879,2]
[360054286,1746525038541,-486.93550115,0.00019879,2]
[360054288,1746525038550,-450.0,0.00019879,2]
[360054290,1746525038559,-478.57796843,0.00019879,2]
[360054291,1746525038568,-490.232637,0.00019879,2]
[360054293,1746525038578,-594.53940055,0.00019879,2]
[360054295,1746525038587,-494.06949929,0.00019879,2]
[360054297,1746525038596,-478.1400401,0.00019879,2]
[360054299,1746525038606,-430.29395076,0.00019879,2]
[360054301,1746525038615,-450.0,0.00019879,2]
[360054303,1746525038624,-451.11989172,0.00019879,2]
[360054305,1746525038633,-469.30020942,0.00019879,2]
[360054307,1746525038642,-474.3212282,0.00019879,2]
[360054309,1746525038651,-486.04095185,0.00019879,2]
[360054311,1746525038660,-450.0,0.00019879,2]
[360054313,1746525038670,-447.19073397,0.00019879,2]
[360054315,1746525038679,-496.78046728,0.00019879,2]
[360054317,1746525038688,-513.84321578,0.00019879,2]
[360054319,1746525038697,-330.40765097,0.00019879,2]
[360054321,1746525038706,-490.30304219,0.00019879,2]
[360054323,1746525038715,-493.96073606,0.00019879,2]
[360054325,1746525038724,-503.58878925,0.00019879,2]
[360054327,1746525038734,-471.71313037,0.00019879,2]
[360054329,1746525038743,-450.0,0.00019879,2]
[360054331,1746525038753,-471.54271815,0.00019879,2]
[360054333,1746525038762,-471.38361395,0.00019879,2]
[360054335,1746525038772,-480.44474905,0.00019879,2]
[360054337,1746525038782,-453.6463598,0.00019879,2]
[360054339,1746525038791,-491.28999462,0.00019879,2]
[360054341,1746525038800,-473.30709763,0.00019879,2]
[360054343,1746525038809,-441.24685172,0.00019879,2]
[360054345,1746525038818,-567.20567513,0.00019879,2]
[360054347,1746525038827,-478.70018162,0.00019879,2]
[360054349,1746525038837,-450.0,0.00019879,2]
[360054351,1746525038846,-457.21247579,0.00019879,2]
[360054353,1746525038855,-492.09446118,0.00019879,2]
[360054355,1746525038864,-465.68252577,0.00019879,2]
[360054357,1746525038873,-496.05973536,0.00019879,2]
[360054359,1746525038883,-450.0,0.00019879,2]
[360054361,1746525038892,-473.45611367,0.00019879,2]
[360054363,1746525038901,-468.42068234,0.00019879,2]
[360054365,1746525038911,-486.58631479,0.00019879,2]
[360054367,1746525038920,-450.0,0.00019879,2]
[360054369,1746525038929,-514.26259716,0.00019879,2]
[360054371,1746525038938,-450.0,0.00019879,2]
[360054373,1746525038947,-450.0,0.00019879,2]
[360054375,1746525038957,-475.00048135,0.00019879,2]
[360054377,1746525038966,-509.08129135,0.00019879,2]
[360054379,1746525038975,-456.13585188,0.00019879,2]
[360054381,1746525038984,-476.55805052,0.00019879,2]
[360054383,1746525038993,-460.94373476,0.00019879,2]
[360054385,1746525039003,-450.0,0.00019879,2]
[360054387,1746525039012,-449.99965821,0.00019879,2]
[360054389,1746525039021,-450.0,0.00019879,2]
[360054391,1746525039030,-527.91781454,0.00019879,2]
[360054393,1746525039039,-476.0528322,0.00019879,2]
[360054395,1746525039048,-454.09562415,0.00019879,2]
[360054397,1746525039058,-462.92375013,0.00019879,2]
[360054399,1746525039067,-450.0,0.00019879,2]
[360054401,1746525039076,-464.88929054,0.00019879,2]
[360054403,1746525039085,-474.83307317,0.00019879,2]
[360054405,1746525039099,-456.24817166,0.00019879,2]
[360054407,1746525039111,-450.0,0.00019879,2]
[360054409,1746525039120,-467.85774002,0.00019879,2]
[360054411,1746525039129,-548.84529819,0.00019879,2]
[360054413,1746525039138,-455.25161023,0.00019879,2]
[360054415,1746525039147,-492.19580637,0.00019879,2]
[360054417,1746525039157,-472.01307456,0.00019879,2]
[360054419,1746525039167,-474.30722789,0.00019879,2]
[360054421,1746525039176,-501.51676011,0.00019879,2]
[360054423,1746525039185,-502.88671952,0.00019879,2]
[360054425,1746525039194,-475.55361243,0.00019879,2]
[360054426,1746525039204,-541.20042224,0.00019879,2]
[360054428,1746525039214,-473.73085592,0.00019879,2]
[360054431,1746525039223,-491.28154493,0.00019879,2]
[360054433,1746525039233,-545.07052475,0.00019879,2]
[360054435,1746525039243,-483.6819244,0.00019879,2]
[360054437,1746525039252,-474.87444824,0.00019879,2]
[360054439,1746525039261,-455.73048171,0.00019879,2]
[360054441,1746525039271,-493.90260623,0.00019879,2]
[360054443,1746525039280,-563.73790208,0.00019879,2]
[360054444,1746525039289,-427.76023717,0.00019879,2]
[360054447,1746525039299,-471.67298451,0.00019879,2]
[360054449,1746525039308,-468.34000376,0.00019879,2]
[360054451,1746525039317,-285.35937419,0.00019879,2]
[360054453,1746525039327,-527.76937333,0.00019879,2]
[360054455,1746525039336,-482.26252734,0.00019879,2]
[360054456,1746525039345,-457.99263557,0.00019879,2]
[360054458,1746525039355,-470.9194111,0.00019879,2]
[360054459,1746525039364,-531.72162241,0.00019879,2]
[360054460,1746525039373,-477.18807447,0.00019879,2]
[360054461,1746525039383,-505.79870825,0.00019879,2]
[360054463,1746525039393,-472.9536515,0.00019879,2]
[360054464,1746525039402,-550.3686492,0.00019879,2]
[360054465,1746525039411,-484.185513,0.00019879,2]
[360054466,1746525039422,-456.08519789,0.00019879,2]
[360054467,1746525039431,-458.98046877,0.00019879,2]
[360054468,1746525039440,-462.34395043,0.00019879,2]
[360054469,1746525039450,-465.09778614,0.00019879,2]
[360054470,1746525039459,-509.07284344,0.00019879,2]
[360054471,1746525039469,-462.0502252,0.00019879,2]
[360054472,1746525039478,-450.0,0.00019879,2]
[360054473,1746525039487,-539.20792509,0.00019879,2]
[360054474,1746525039498,-480.57998964,0.00019879,2]
[360054475,1746525039510,-462.37127149,0.00019879,2]
[360054476,1746525039519,-468.81224557,0.00019879,2]
[360054477,1746525039528,-482.94587042,0.00019879,2]
[360054478,1746525039538,-464.26114368,0.00019879,2]
[360054479,1746525039548,-475.17163322,0.00019879,2]
[360054480,1746525039557,-475.50434262,0.00019879,2]
[360054481,1746525039566,-450.0,0.0001988,2]
[360054482,1746525039577,-450.0,0.0001988,2]
[360054483,1746525039586,-450.0,0.0001988,2]
[360054484,1746525039595,-450.0,0.0001988,2]
[360054485,1746525039605,-450.0,0.0001988,2]
[360054486,1746525039614,-450.0,0.0001988,2]
[360054487,1746525039623,-450.0,0.0001988,2]
[360054488,1746525039632,-450.0,0.0001988,2]
[360054489,1746525039641,-294.43,0.0001988,2]
[360054490,1746525039650,-450.0,0.0001988,2]
[360054491,1746525039660,-450.0,0.0001988,2]
[360054492,1746525039669,-450.0,0.0001988,2]
[360054493,1746525039678,-450.0,0.0001988,2]
[360054494,1746525039688,-190.83,0.0001988,2]
[360054495,1746525039698,-157.71,0.0001988,2]
[360054496,1746525039708,-450.0,0.0001988,2]
[360054497,1746525039717,-450.0,0.0001988,2]
[360054498,1746525039727,-450.0,0.0001988,2]
[360054499,1746525039736,-450.0,0.0001988,2]
[360054500,1746525039745,-450.0,0.0001988,2]
[360054501,1746525039754,-450.0,0.0001988,2]
[360054502,1746525039763,-603.74,0.0001988,2]
[360054503,1746525039772,-450.0,0.0001988,2]
[360054504,1746525039782,-450.0,0.0001988,2]